fUSD/lending_fUSD_20260313
["ID","MTS","AMOUNT","RATE_DAILY","PERIOD"]
[408319110,1773413433558,-500.0,0.00019799,2]
[408319111,1773413433566,-500.0,0.00019799,2]
[408319112,1773413433575,-403.20461922,0.00019799,2]
[408319113,1773413433585,-500.0,0.00019799,2]
[408319114,1773413433594,-539.6122178,0.00019799,2]
[408319115,1773413433604,-500.0,0.00019799,2]
[408319116,1773413433613,-500.0,0.00019799,2]
[408319117,1773413433622,-500.0,0.00019799,2]
[408319118,1773413433631,-500.0,0.00019799,2]
[408319119,1773413433640,-500.0,0.00019799,2]
[408319120,1773413433649,-500.0,0.00019799,2]
[408319121,1773413433658,-10412.14433488,0.00019812,2]
[408319122,1773413433668,-521.79,0.00019824,2]
[408319123,1773413433677,-1278.17151889,0.00019827,2]
[408319124,1773413433686,-10412.14433488,0.00019856,2]
[408319125,1773413433695,-1000.0,0.00019863,2]
[408319126,1773413433705,-500.81396462,0.00019873,2]
[408319127,1773413433714,-500.0,0.00019873,2]
[408319128,1773413433734,-500.0,0.00019873,2]
[408319129,1773413433745,-621.90362035,0.00019873,2]
[408319130,1773413433755,-500.0,0.00019873,2]
[408319131,1773413433766,-500.3680898,0.00019873,2]
[408319132,1773413433775,-161.62483646,0.00019873,2]
[408319133,1773413433788,-303.74834023,0.00019873,2]
[408319134,1773413433799,-500.92517317,0.00019873,2]
[408319135,1773413433808,-283.80602919,0.00019873,2]
[408319136,1773413433818,-500.0,0.00019873,2]
[408319137,1773413433828,-500.0,0.00019873,2]
[408319138,1773413433837,-500.0,0.00019873,2]
[408319139,1773413433847,-500.0,0.00019873,2]
[408319140,1773413433857,-500.0,0.00019873,2]
[408319141,1773413433867,-500.0,0.00019873,2]
[408319142,1773413433877,-330.27342068,0.00019873,2]
[408319143,1773413433889,-500.0,0.00019873,2]
[408319144,1773413433899,-550.0891429,0.00019873,2]
[408319145,1773413433909,-2865.04,0.0001989,2]
[408319146,1773413433919,-500.0,0.00019899,2]
[408319147,1773413433928,-178.54137023,0.00019899,2]
[408319148,1773413433938,-500.0,0.00019899,2]
[408319149,1773413433948,-207.48214446,0.00019899,2]
[408319150,1773413433957,-317.42137109,0.00019899,2]
[408319151,1773413433967,-169.05569249,0.000199,2]
[408319152,1773413433976,-62908.71058307,0.000199,2]
[408319169,1773413438517,-309.99847257,0.00019311,2]
[408319170,1773413438647,-443.68682743,0.00019311,2]
[408319171,1773413438656,-13784.67238608,0.000199,2]
[408319172,1773413438669,-88750.50283085,0.000199,2]
[408319173,1773413438679,-1359.6636,0.000199,2]
[408319174,1773413438689,-5000.0,0.000199,2]
[408319175,1773413438700,-10412.14433488,0.000199,2]
[408319176,1773413438710,-2078.57931478,0.000199,2]
[408319177,1773413438720,-1278.17151889,0.000199,2]
[408319178,1773413438729,-1315.9215132,0.000199,2]
[408319179,1773413438739,-238.81680334,0.000199,2]
[408319180,1773413438748,-1125.75232826,0.000199,2]
[408319181,1773413438759,-1304.0,0.00019973,2]
[408319182,1773413438769,-500.0,0.00019973,2]
[408319183,1773413438779,-534.05394066,0.0001999,2]
[408319185,1773413438789,-534.05394066,0.0001999,2]
[408319186,1773413438799,-534.05394066,0.0001999,2]
[408319187,1773413438809,-151.0,0.00019997,2]
[408319188,1773413438818,-300.0,0.00019999,2]
[408319189,1773413438828,-300.0,0.00019999,2]
[408319190,1773413438838,-300.0,0.00019999,2]
[408319191,1773413438848,-666.0,0.00019999,2]
[408319192,1773413438858,-300.0,0.00019999,2]
[408319193,1773413438867,-500.0,0.00019999,2]
[408319194,1773413438877,-250.11553072,0.00019999,2]
[408319195,1773413438887,-155.0,0.00019999,2]
[408319196,1773413438896,-547.90931335,0.00019999,2]
[408319197,1773413438906,-500.0,0.00019999,2]
[408319198,1773413438916,-500.0,0.00019999,2]
[408319199,1773413438926,-500.0,0.00019999,2]
[408319200,1773413438935,-500.0,0.00019999,2]
[408319201,1773413438945,-524.21910232,0.00019999,2]
[408319202,1773413438955,-500.0,0.00019999,2]
[408319203,1773413438964,-500.0,0.00019999,2]
[408319204,1773413438975,-500.0,0.00019999,2]
[408319205,1773413438984,-500.0,0.00019999,2]
[408319206,1773413438994,-500.0,0.00019999,2]
[408319207,1773413439004,-500.0,0.00019999,2]
[408319208,1773413439013,-500.0,0.00019999,2]
[408319209,1773413439022,-500.0,0.00019999,2]
[408319210,1773413439032,-500.0,0.00019999,2]
[408319211,1773413439041,-500.0,0.00019999,2]
[408319212,1773413439052,-500.0,0.00019999,2]
[408319213,1773413439062,-500.0,0.00019999,2]
[408319214,1773413439072,-500.0,0.00019999,2]
[408319215,1773413439081,-541.71297631,0.00019999,2]
[408319216,1773413439092,-122881.64488984,0.0002,2]
[408319217,1773413439105,-11401.66518951,0.0002,2]
[408319218,1773413439117,-3207.037598,0.0002,2]
[408319219,1773413439129,-2910.66537728,0.0002,2]
[408319220,1773413439141,-8579.70926802,0.0002,2]
[408319221,1773413439155,-1827.51649629,0.0002,2]
[408319222,1773413439167,-6204.64695157,0.0002,2]
[408319228,1773413440527,-2515712.94568574,0.0002,2]
[408319229,1773413440877,-272.51070615,0.0002,2]
[408319242,1773413446218,-31.43282323,0.000199,2]
[408319243,1773413446315,-145.89948549,0.000199,2]
[408319244,1773413446325,-1157.07230998,0.0002,2]
[408319245,1773413446341,-71742.20610145,0.0002,2]
[408319283,1773413620168,39307.17,0.00032876,120]
[408319284,1773413766604,839.9112,0.0003287,120]
[408319285,1773413852535,1787.4,0.00032877,120]
[408319286,1773414218385,160.0,0.00025,120]
[408319287,1773414261601,302.84,0.00032877,120]
[408319288,1773414533441,5167.22,0.000141,2]
[408319289,1773414547097,-250.0,0.00015,2]
[408319290,1773414547121,-300.0,0.00015037,2]
[408319291,1773414547141,-250.0,0.00015074,2]
[408319292,1773414547163,-191.74144226,0.00016099,2]
[408319293,1773414547184,-1493.46,0.00016185,2]
[408319294,1773414547207,-1200.0,0.00016199,2]
[408319295,1773414547229,-300.0,0.00016199,2]
[408319296,1773414547251,-300.0,0.00016199,2]
[408319297,1773414547272,-17198.79510642,0.000162,5]
[408319298,1773414547293,-500.0,0.00016425,2]
[408319299,1773414547314,-500.0,0.00016425,2]
[408319300,1773414547335,-550.0,0.00016499,2]
[408319301,1773414547356,-305.70426919,0.000165,2]
[408319302,1773414547382,-300.30611518,0.000165,2]
[408319303,1773414547404,-195.0,0.000165,2]
[408319304,1773414547426,-195.0,0.000165,2]
[408319305,1773414547447,-250.0,0.000165,2]
[408319306,1773414547472,-300.0,0.000165,2]
[408319307,1773414547494,-353.29785593,0.000165,2]
[408319308,1773414547515,-300.0,0.000165,2]
[408319309,1773414547539,-4905.82774708,0.000165,2]
[408319310,1773414547561,-2500.0,0.000165,2]
[408319311,1773414547583,-2500.0,0.000165,2]
[408319312,1773414547605,-2500.0,0.000165,2]
[408319313,1773414547629,-472.72152394,0.000165,2]
[408319314,1773414548140,-2027.27847606,0.000165,2]
[408319315,1773414548162,-197.61017159,0.000165,2]
[408319316,1773414548183,-200.0,0.000165,2]
[408319317,1773414548202,-251.95035202,0.000165,2]
[408319318,1773414548223,-300.0,0.000165,2]
[408319319,1773414548244,-250.0,0.000165,2]
[408319320,1773414548264,-600.0,0.000165,2]
[408319321,1773414548283,-300.0,0.000165,2]
[408319322,1773414548305,-1498.36100033,0.000165,2]
[408319323,1773414555082,-1001.63899967,0.000165,2]
[408319324,1773414555101,-269.62516553,0.00016618,2]
[408319325,1773414555121,-195.0,0.00016736,2]
[408319326,1773414555140,-154.3912348,0.00016736,2]
[408319327,1773414567522,1291.8,0.000141,2]
[408319328,1773414581082,1937.71,0.000141,2]
[408319329,1773414603561,1800.0,0.000141,2]
[408319355,1773414631482,-291.0,0.00016736,2]
[408319357,1773414631492,-95.6087652,0.00016736,2]
[408319359,1773414631501,-195.0,0.00016855,2]
[408319361,1773414631510,-195.0,0.000171,2]
[408319363,1773414631520,-195.0,0.000171,2]
[408319365,1773414631529,-250.0,0.000171,2]
[408319367,1773414631538,-412.003929,0.00017249,7]
[408319369,1773414631548,-2000.0,0.00017259,2]
[408319371,1773414631558,-255.0,0.00017621,2]
[408319373,1773414631567,-191.74144226,0.000179,2]
[408319375,1773414631576,-300.0,0.00017981,2]
[408319377,1773414631586,-1200.0,0.00017981,2]
[408319379,1773414631595,-300.0,0.00017981,2]
[408319381,1773414631604,-3240.0,0.00017982,2]
[408319383,1773414631614,-17766.7711737,0.00018,2]
[408319385,1773414631623,-308.94322639,0.00018,2]
[408319387,1773414631636,-195.0,0.0001815,2]
[408319389,1773414631645,-250.0,0.0001815,2]
[408319391,1773414631655,-500.0,0.0001815,2]
[408319393,1773414631664,-2000.0,0.00018312,2]
[408319395,1773414631676,-200.0,0.00018312,2]
[408319397,1773414631686,-600.0,0.0001841,2]
[408319399,1773414631695,-787.20183908,0.0001841,2]
[408319401,1773414631705,-195.0,0.0001841,2]
[408319403,1773414631715,-205.84,0.00018552,2]
[408319404,1773414631725,-182.26,0.00018628,2]
[408319405,1773414631735,-11680.7679,0.000187,2]
[408319406,1773414631744,-165.59086002,0.000187,2]
[408319408,1773414631754,-7475.27067281,0.0001872,2]
[408319409,1773414631763,-500.0,0.00018773,2]
[408319411,1773414631774,-202.38527942,0.00018789,2]
[408319413,1773414631783,-256.5,0.0001879,2]
[408319415,1773414631793,-1804.66095518,0.00018799,2]
[408319417,1773414631802,-500.0,0.00018799,2]
[408319418,1773414631812,-269854.9373,0.000188,2]
[408319419,1773414631823,-1196.84465036,0.000188,2]
[408319420,1773414631832,-165.59086001,0.00018871,2]
[408319421,1773414631842,-1196.84465027,0.00018922,2]
[408319422,1773414631851,-1384.22,0.00019,2]
[408319423,1773414631861,-2626.88533399,0.00019,2]
[408319424,1773414631870,-475.46675357,0.00019,2]
[408319425,1773414631879,-1196.84465027,0.00019044,2]
[408319426,1773414631889,-496.49197428,0.00019049,2]
[408319427,1773414631898,-160.0,0.00019079,2]
[408319428,1773414631907,-1196.84465027,0.00019167,2]
[408319429,1773414631917,-1041.21443356,0.00019239,2]
[408319430,1773414631925,-1196.84465027,0.00019289,2]
[408319431,1773414631935,-340.38008332,0.00019293,2]
[408319432,1773414631944,-2237.8,0.00019299,2]
[408319433,1773414631954,-1000.0,0.00019311,2]
[408319434,1773414631964,-1041.21443348,0.00019312,2]
[408319435,1773414631973,-1000.0,0.00019321,2]
[408319436,1773414631983,-256.5,0.00019329,2]
[408319437,1773414631992,-507.50732285,0.00019338,2]
[408319438,1773414632002,-150.99,0.00019339,2]
[408319439,1773414632012,-7801.73,0.00019339,2]
[408319440,1773414632021,-150.99,0.00019339,2]
[408319441,1773414632031,-9999.99,0.00019339,2]
[408319442,1773414632041,-20722.32,0.00019339,2]
[408319443,1773414632050,-1041.21443348,0.00019386,2]
[408319444,1773414632060,-1196.84465027,0.00019411,2]
[408319445,1773414632069,-2000.0,0.00019416,2]
[408319446,1773414632079,-1041.21443348,0.00019459,2]
[408319447,1773414632089,-1041.21443348,0.00019533,2]
[408319448,1773414632098,-1196.84465027,0.00019533,2]
[408319449,1773414632108,-205.84,0.00019583,2]
[408319450,1773414632118,-500.0,0.00019598,2]
[408319451,1773414632128,-500.0,0.00019598,2]
[408319452,1773414632137,-500.0,0.00019598,2]
[408319453,1773414632148,-500.0,0.00019599,2]
[408319454,1773414632157,-500.0,0.00019599,2]
[408319455,1773414632167,-500.0,0.00019599,2]
[408319456,1773414632177,-515.52448038,0.00019599,2]
[408319457,1773414632186,-501.88920658,0.00019599,2]
[408319458,1773414632196,-540.40783545,0.00019599,2]
[408319459,1773414632205,-500.0,0.00019599,2]
[408319460,1773414632214,-500.0,0.00019599,2]
[408319461,1773414632224,-1041.21443348,0.00019606,2]
[408319462,1773414632233,-420.0,0.0001962,2]
[408319463,1773414632243,-1196.84465027,0.00019656,2]
[408319464,1773414632252,-1041.21443348,0.0001968,2]
[408319465,1773414632262,-1000.0,0.000197,2]
[408319466,1773414632272,-299.25807466,0.000197,2]
[408319467,1773414632282,-1680.0,0.00019716,2]
[408319468,1773414632291,-1041.21443348,0.00019753,2]
[408319469,1773414632300,-500.0,0.00019765,2]
[408319470,1773414632309,-500.0,0.00019765,2]
[408319471,1773414632320,-1196.84465027,0.00019778,2]
[408319472,1773414632330,-168.0,0.00019858,2]
[408319473,1773414632340,-1500.0,0.00019868,2]
[408319474,1773414632349,-444.74551473,0.000199,2]
[408319475,1773414632358,-1359.6636,0.000199,2]
[408319476,1773414632368,-2376.15717924,0.000199,2]
[408319477,1773414632378,-5000.0,0.000199,2]
[408319478,1773414632387,-1196.84465027,0.000199,2]
[408319479,1773414632397,-492.69437203,0.00019973,2]
[408319480,1773414632407,-196.25165977,0.00019973,2]
[408319481,1773414632416,-501.74189694,0.00019973,2]
[408319482,1773414632426,-500.0,0.00019973,2]
[408319483,1773414632435,-1304.0,0.00019973,2]
[408319484,1773414632444,-500.0,0.00019973,2]
[408319485,1773414632454,-500.0,0.00019973,2]
[408319486,1773414632463,-500.0,0.00019973,2]
[408319487,1773414632472,-500.0,0.00019973,2]
[408319488,1773414632482,-500.0,0.00019973,2]
[408319489,1773414632491,-534.05394066,0.0001999,2]
[408319490,1773414632502,-534.05394066,0.0001999,2]
[408319491,1773414632511,-534.05394066,0.0001999,2]
[408319492,1773414632520,-256.5,0.0001999,2]
[408319493,1773414632531,-256.5,0.0001999,2]
[408319494,1773414632540,-256.5,0.0001999,2]
[408319495,1773414632549,-151.0,0.00019997,2]
[408319496,1773414632559,-300.0,0.00019999,2]
[408319497,1773414632569,-300.0,0.00019999,2]
[408319498,1773414632578,-666.0,0.00019999,2]
[408319499,1773414632587,-300.0,0.00019999,2]
[408319500,1773414632596,-155.0,0.00019999,2]
[408319501,1773414632606,-155.0,0.00019999,2]
[408319502,1773414632615,-572.19495976,0.00019999,2]
[408319503,1773414632625,-147256.53118144,0.0002,2]
[408319504,1773414632639,-20157.52565971,0.0002,2]
[408319505,1773414632687,-618.74731716,0.00019338,2]
[408319506,1773414632697,-13912.204245,0.0002,2]
[408319507,1773414632708,-994.88176241,0.0002,2]
[408319519,1773414637959,-165.59086001,0.00019043,2]
[408319520,1773414637970,-1041.21443348,0.00019827,2]
[408319521,1773414637980,-3947.76453958,0.000199,2]
[408319522,1773414637990,-31105.13211706,0.0002,2]
[408319523,1773414638002,-51132.35283387,0.0002,2]
[408319526,1773414639714,-1041.21443348,0.000199,2]
[408319530,1773414639726,-1898719.00847318,0.0002,2]
[408319531,1773414639735,-615952.72277908,0.0002,2]
[408319536,1773414639775,-1074.5,0.0002,2]
[408319548,1773414642848,-165.59086001,0.00019214,2]
[408319549,1773414642866,-818.90302967,0.0002,2]
[408319550,1773414642881,-7236.2,0.0002,2]
[408319567,1773414645444,-800.135,0.000199,2]
[408319568,1773414645753,-165.59086001,0.00019386,2]
[408319569,1773414645763,-300.56475473,0.000199,2]
[408319570,1773414645776,-422.06750907,0.000199,2]
[408319571,1773414645790,-612.73666031,0.000199,2]
[408319572,1773414645803,-2738.848697,0.000199,2]
[408319573,1773414645819,-125.64737889,0.000199,2]
[408319574,1773414645831,-3377.25698478,0.000199,2]
[408319575,1773414645841,-1228468.8840281,0.0002,2]
[408319593,1773414717977,166.0,0.000328,120]
[408319594,1773414974426,300.0,0.000328,120]
[408319595,1773414997345,151.7,9.516e-05,2]
[408319596,1773414997575,151.7,0.00010248,2]
[408319597,1773414997806,151.7,0.0001098,2]
[408319598,1773414998008,151.7,0.00011712,2]
[408319599,1773414998219,151.7,0.00012444,2]
[408319600,1773414998461,151.7,0.00013176,2]
[408319601,1773414998661,151.7,0.00013908,2]
[408319602,1773415186177,5011.98,0.00032877,120]
[408319604,1773415464131,186.61,0.00026351,120]
[408319605,1773415697932,3121.0,0.000141,2]
[408319606,1773415728022,5729.5,0.00032877,120]
[408319607,1773415746142,-151.7,0.0001464,2]
[408319608,1773415746370,-4213.39930839,0.0001464,2]
[408319609,1773415746393,-271.0,0.0001464,2]
[408319610,1773415746416,-261.68437556,0.00014995,2]
[408319611,1773415746437,-250.0,0.00015,2]
[408319612,1773415746458,-151.7,0.00015372,2]
[408319613,1773415746480,-1200.0,0.00016102,2]
[408319614,1773415746502,-300.0,0.00016102,2]
[408319615,1773415746524,-292.0,0.00016102,2]
[408319616,1773415746546,-151.7,0.00016103,2]
[408319617,1773415746567,-4230.00304178,0.00016103,2]
[408319618,1773415753132,-223.27474466,0.00016103,2]
[408319619,1773415753153,-237.18143312,0.00016103,2]
[408319620,1773415753176,-151.7,0.00016835,2]
[408319621,1773415753196,-150.0,0.00017405,2]
[408319622,1773415753216,-5580.78,0.00017497,2]
[408319623,1773415753237,-500.0,0.00017565,2]
[408319624,1773415753258,-136.11500622,0.00017567,2]
[408319626,1773415831674,-50.49499378,0.00017567,2]
[408319627,1773415831688,-195.0,0.00017567,2]
[408319628,1773415831698,-151.7,0.00017567,2]
[408319629,1773415831708,-3781.79219592,0.00017797,2]
[408319630,1773415831720,-10594.85606842,0.00017797,2]
[408319632,1773415831750,-510.78051524,0.00017797,2]
[408319635,1773415831762,-364.66143571,0.00017797,2]
[408319637,1773415831774,-3417.316,0.00017797,2]
[408319639,1773415831836,-624.35787928,0.00017797,2]
[408319640,1773415831848,-43513.60590543,0.00017797,2]
[408319641,1773415831858,-386.7931149,0.00018122,2]
[408319642,1773415831867,-994.3,0.00018222,2]
[408319643,1773415831877,-200.0,0.00018222,2]
[408319644,1773415831886,-386.7931149,0.00018248,2]
[408319645,1773415831895,-151.7,0.00018299,2]
[408319646,1773415831905,-386.7931149,0.00018373,2]
[408319647,1773415831915,-386.7931149,0.00018499,2]
[408319648,1773415831924,-173.53573893,0.000185,2]
[408319649,1773415831937,-410.65139611,0.000185,2]
[408319650,1773415831951,-3028.72,0.00018575,2]
[408319651,1773415831960,-1200.0,0.00018598,2]
[408319652,1773415831972,-500.0,0.00018599,2]
[408319653,1773415831982,-400.53647183,0.00018599,2]
[408319654,1773415831992,-500.0,0.00018599,2]
[408319655,1773415832002,-500.0,0.00018599,2]
[408319656,1773415832011,-500.0,0.00018599,2]
[408319657,1773415832021,-500.0,0.00018599,2]
[408319658,1773415832030,-547.90931335,0.00018599,2]
[408319659,1773415832040,-181.955,0.00018599,2]
[408319660,1773415832049,-4730.444,0.00018599,2]
[408319661,1773415832059,-500.0,0.00018599,2]
[408319662,1773415832069,-500.0,0.00018599,2]
[408319663,1773415832079,-500.0,0.00018599,2]
[408319664,1773415832089,-500.0,0.00018599,2]
[408319665,1773415832098,-500.0,0.00018599,2]
[408319666,1773415832108,-500.0,0.00018599,2]
[408319667,1773415832117,-500.0,0.00018599,2]
[408319668,1773415832127,-500.0,0.00018599,2]
[408319669,1773415832137,-500.0,0.00018599,2]
[408319670,1773415832364,-500.0,0.00018599,2]
[408319671,1773415832374,-500.0,0.00018599,2]
[408319672,1773415832384,-500.0,0.00018599,2]
[408319673,1773415832394,-500.0,0.00018599,2]
[408319674,1773415832404,-378.56613398,0.00018599,2]
[408319675,1773415832413,-500.0,0.00018599,2]
[408319676,1773415832422,-500.0,0.00018599,2]
[408319677,1773415832432,-500.0,0.00018599,2]
[408319678,1773415832443,-500.0,0.00018599,2]
[408319679,1773415832453,-500.0,0.00018599,2]
[408319680,1773415832472,-500.0,0.00018599,2]
[408319681,1773415832483,-500.0,0.00018599,2]
[408319682,1773415832494,-500.0,0.00018599,2]
[408319683,1773415832505,-500.0,0.00018599,2]
[408319684,1773415832516,-358.25979389,0.00018599,2]
[408319685,1773415832527,-314.62316999,0.00018599,2]
[408319686,1773415832537,-500.0,0.00018599,2]
[408319687,1773415832549,-235.18,0.00018599,2]
[408319688,1773415832559,-500.0,0.00018599,2]
[408319689,1773415832569,-514.33170508,0.00018599,2]
[408319690,1773415832585,-500.0,0.00018599,2]
[408319691,1773415832595,-500.0,0.00018599,2]
[408319692,1773415832605,-500.0,0.00018599,2]
[408319693,1773415832615,-500.0,0.00018599,2]
[408319694,1773415832626,-138024.94788195,0.000186,2]
[408319695,1773415832639,-18809.13070856,0.000186,2]
[408319696,1773415832667,-367.15397449,0.000186,2]
[408319698,1773415837755,-426.61846658,0.000186,2]
[408319699,1773415837768,-434.84011569,0.000186,2]
[408319701,1773415837780,-39200.9475102,0.000186,2]
[408319703,1773415837792,-3007.62885356,0.000186,2]
[408319704,1773415837805,-996.25074884,0.000186,2]
[408319705,1773415837819,-2934.02089955,0.000186,2]
[408319706,1773415837835,-1930.95391673,0.000186,2]
[408319707,1773415838086,-408.54905294,0.000186,2]
[408319726,1773415838315,-10498.75277099,0.000186,2]
[408319728,1773415838329,-5489.6013806,0.000186,2]
[408319766,1773415840011,-340.55297312,0.000186,2]
[408319768,1773415840026,-773657.6883462,0.000186,2]
[408319769,1773415840036,-4079.87,0.000186,2]
[408319770,1773415840045,-410.65139606,0.00018656,2]
[408319771,1773415840057,-556.08878516,0.00018673,2]
[408319772,1773415840067,-500.0,0.00018673,2]
[408319773,1773415840080,-500.0,0.00018673,2]
[408319774,1773415840090,-500.0,0.00018673,2]
[408319775,1773415840100,-213.57903232,0.00018673,2]
[408319776,1773415840109,-500.0,0.00018699,2]
[408319777,1773415840118,-500.0,0.00018699,2]
[408319778,1773415840128,-500.0,0.00018699,2]
[408319779,1773415840138,-500.0,0.00018699,2]
[408319780,1773415840147,-500.0,0.00018699,2]
[408319781,1773415840157,-638.72467995,0.00018699,2]
[408319782,1773415840166,-500.0,0.00018699,2]
[408319783,1773415840176,-500.0,0.00018699,2]
[408319784,1773415840185,-500.0,0.00018699,2]
[408319785,1773415840195,-500.0,0.00018699,2]
[408319786,1773415840205,-522.37767906,0.00018699,2]
[408319787,1773415840214,-500.0,0.00018699,2]
[408319788,1773415840223,-500.0,0.00018699,2]
[408319789,1773415840233,-500.0,0.00018699,2]
[408319790,1773415840242,-500.0,0.00018699,2]
[408319791,1773415840251,-500.0,0.00018699,2]
[408319792,1773415840261,-500.0,0.00018699,2]
[408319793,1773415840271,-270.40393298,0.00018699,2]
[408319794,1773415840280,-1000.0,0.000187,2]
[408319795,1773415840290,-328294.2261,0.000187,2]
[408319796,1773415840300,-173.53573891,0.0001878,2]
[408319797,1773415840310,-410.65139606,0.00018811,2]
[408319798,1773415840319,-2473.54,0.00018854,2]
[408319799,1773415840331,-235.18,0.00018873,2]
[408319800,1773415840340,-410.65139606,0.00018967,2]
[408319801,1773415840350,-500.0,0.00018999,2]
[408319802,1773415840360,-578.20924308,0.00018999,2]
[408319803,1773415840370,-151.0,0.00018999,2]
[408319804,1773415840379,-200.0,0.00018999,2]
[408319805,1773415840388,-500.0,0.00018999,2]
[408319806,1773415840397,-500.0,0.00018999,2]
[408319807,1773415840407,-474.84051221,0.00018999,2]
[408319808,1773415840416,-151.7,0.00019031,2]
[408319809,1773415840425,-500.0,0.00019054,2]
[408319810,1773415840435,-151.0,0.00019054,2]
[408319811,1773415840445,-173.53573891,0.0001906,2]
[408319812,1773415840455,-3776.01,0.00019106,2]
[408319813,1773415840465,-500.0,0.00019109,2]
[408319814,1773415840476,-151.0,0.00019109,2]
[408319815,1773415840485,-410.65139606,0.00019122,2]
[408319816,1773415840494,-235.18,0.00019147,2]
[408319817,1773415840504,-500.0,0.00019164,2]
[408319818,1773415840514,-151.0,0.00019164,2]
[408319819,1773415840524,-1500.0,0.000192,2]
[408319820,1773415840534,-500.0,0.00019219,2]
[408319821,1773415840544,-151.0,0.00019219,2]
[408319822,1773415840554,-502.204028,0.00019221,2]
[408319823,1773415840565,-1000.0,0.00019221,2]
[408319824,1773415840575,-1000.0,0.00019221,2]
[408319825,1773415840584,-500.0,0.00019274,2]
[408319826,1773415840593,-151.0,0.00019274,2]
[408319827,1773415840603,-410.65139606,0.00019278,2]
[408319828,1773415840612,-2500.0,0.00019324,2]
[408319829,1773415840622,-769.99695822,0.00019324,2]
[408319830,1773415840632,-195.0,0.00019324,2]
[408319831,1773415840641,-151.0,0.00019329,2]
[408319832,1773415840651,-173.53573891,0.0001934,2]
[408319833,1773415840661,-151.0,0.00019384,2]
[408319834,1773415840671,-235.18,0.00019421,2]
[408319835,1773415840681,-151.0,0.00019439,2]
[408319837,1773415840690,-151.0,0.00019494,2]
[408319838,1773415840700,-200.0,0.00019547,2]
[408319839,1773415840710,-151.0,0.00019549,2]
[408319840,1773415840719,-250.0,0.00019569,2]
[408319841,1773415840729,-173.53573891,0.0001962,2]
[408319842,1773415840739,-235.19,0.00019695,2]
[408319843,1773415840749,-1500.0,0.00019768,2]
[408319844,1773415840758,-188.9940742,0.00019768,2]
[408319845,1773415840768,-1000.0,0.00019788,2]
[408319846,1773415840778,-1000.0,0.00019788,2]
[408319847,1773415840788,-855.12023,0.000198,2]
[408319848,1773415840799,-855.12023,0.000198,2]
[408319849,1773415840809,-855.12023,0.000198,2]
[408319850,1773415840819,-855.12023,0.000198,2]
[408319851,1773415840830,-855.12022,0.000198,2]
[408319852,1773415840840,-855.12023,0.000198,2]
[408319853,1773415840850,-168.0,0.00019804,2]
[408319854,1773415840860,-166.0,0.000199,2]
[408319855,1773415840870,-406.00663969,0.000199,2]
[408319856,1773415840881,-173.53573891,0.000199,2]
[408319857,1773415840890,-716.45041,0.000199,2]
[408319858,1773415840899,-3979.0,0.000199,2]
[408319859,1773415840909,-4237.0,0.000199,2]
[408319860,1773415840918,-700.0,0.00019971,2]
[408319861,1773415840929,-500.0,0.00019973,2]
[408319862,1773415840941,-500.0,0.00019973,2]
[408319863,1773415840951,-151.0,0.00019997,2]
[408319864,1773415840960,-300.0,0.00019999,2]
[408319865,1773415840971,-300.0,0.00019999,2]
[408319866,1773415840982,-500.0,0.00019999,2]